Cogmind - Beta 14 @@@ ROGUE MODE // 2025.03.28 @ 16:57:37 Player: mix Result: Destroyed by Y-45 Defender with Heavy Assault Rifle Performance ------------- Evolutions (0) 0 Regions Visited (2) 400 Robots Destroyed (30) 150 Value Destroyed (514) 514 Prototype IDs (0) 0 Alien Tech Used (0) 0 Bonus (0) 0 TOTAL SCORE: 1064 Bonus ------- None Cogmind --------- Core Integrity 0/250 Matter 215/300 Energy 100/100 System Corruption 0% Temperature Cool (9) Movement Core (200) Ox3 Location -10/Mines Parts ------- > --- POWER (1) -------- (None) > --- PROPULSION (2) --- (None) > --- UTILITY (2) ------ Heat Sink Medium Storage Unit > --- WEAPON (2) ------- (None) > --- INVENTORY (10) --- Recalibrator Peak State ------------ > --- POWER ------------ Ion Engine > --- PROPULSION ------- Light Treads Light Treads > --- UTILITY ---------- Small Storage Unit Medium Storage Unit > --- WEAPON ----------- Small Laser Beam Cannon > --- INVENTORY -------- Light Treads Grenade Launcher [Rating: 7] Favorites ----------- Power Ion Engine Engine Ion Engine Propulsion Light Treads Treads Light Treads Utility Medium Storage Unit Device Heat Sink Storage Medium Storage Unit Weapon Small Laser Energy Gun Small Laser Energy Cannon Beam Cannon Ballistic Gun Assault Rifle Launcher Grenade Launcher Build | -11 -10 -10 ------- Run | Yrd Mat Min Slots Evolved . | . . . Power . | . . . Propulsion . | . . . Utility . | . . . Weapon . | . . . Parts Attached 21 | 6 14 1 Power 2 | 1 1 . Engine 2 | 1 1 . Core . | . . . Reactor . | . . . Propulsion 5 | 2 3 . Treads 5 | 2 3 . Leg . | . . . Wheel . | . . . Hover . | . . . Flight . | . . . Utility 3 | 1 2 . Device 1 | . 1 . Storage 2 | 1 1 . Processor . | . . . Hackware . | . . . Protection . | . . . Artifact . | . . . Weapon 11 | 2 8 1 Energy Gun 5 | . 4 1 Energy Cannon 1 | . 1 . Ballistic Gun 2 | 2 . . Ballistic Cannon . | . . . Launcher 3 | . 3 . Special Weapon . | . . . Impact Weapon . | . . . Slashing Weapon . | . . . Piercing Weapon . | . . . Special Melee Weapon . | . . . Unidentified Prototypes . | . . . Parts Lost 10 | . 4 6 Power 2 | . 1 1 Propulsion 3 | . 1 2 Utility . | . . . Weapon 5 | . 2 3 Highest Loss Streak 3 | . 3 3 To Critical Strikes 1 | . . 1 Average Slot Usage (%) 81 | . 93 64 Engine 13 | . 13 14 Treads 23 | . 28 15 Device 6 | . . 14 Storage 18 | . 21 14 Energy Gun 8 | . 12 2 Energy Cannon 4 | . 7 . Launcher 4 | . 5 2 Peak Build Rating 7 | 6 7 7 Average Rating 5 | 4 6 4 On Entrance 4 | . 6 7 Naked Turns . | . . . Heaviest Build 26 | 13 26 19 Greatest Support 40 | 40 40 40 Greatest Overweight (x) 3 | . . 3 Average Overweight (x) . | . . . Largest Inventory Capacity 10 | 8 10 10 Average Capacity 9 | 6 9 10 Most Carried 3 | 3 3 2 Average Carried 1 | . 1 1 Final Capacity 10 | 8 10 10 Final Carried 1 | . 1 1 Class Distribution -------------------- 100% | Mutant Dominant Class ---------------- Mutant | -10/Materials Mutant | -10/Mines Resources | -11 -10 -10 ----------- Run | Yrd Mat Min Matter Collected 512 | 260 215 37 Remotely . | . . . Salvage Created 718 | . 574 144 Parts 45 | . 37 8 Haulers Intercepted 2 | . 2 . Recyclers Shooed 1 | . 1 . Parts Field Recycled . | . . . Retrieved Matter . | . . . Parts Self-Destructed . | . . . Prevented . | . . . Kills | -11 -10 -10 ------- Run | Yrd Mat Min Combat Hostiles Destroyed 14 | . 12 2 Guns 3 | . 3 . Cannons 2 | . 2 . AOE 9 | . 7 2 Classes Destroyed 10 | . 10 . Worker 4 | . 2 2 Builder 2 | . 2 . Tunneler 3 | . 2 1 Hauler 2 | . 2 . Recycler 2 | . 2 . Mechanic 1 | . 1 . Operator 1 | . 1 . Watcher 1 | . 1 . Swarmer 6 | . 6 . Grunt 8 | . 6 2 Best Kill Streak 8 | . 8 3 Combat Bots Only 6 | . 6 2 Max Kills in Single Turn 3 | . 3 1 Gunslinging . | . . . Exploded 2 | . 2 1 Melee . | . . . Uniques/NPCs Destroyed . | . . . Combat | -11 -10 -10 -------- Run | Yrd Mat Min Hostile Shots Fired 71 | . 61 10 Missed 17 | . 16 1 Damage Taken 1229 | . 848 381 Core 250 | . 195 55 Absorbed by Shields . | . . . Core Remaining (%) 100 | 100 . . Volleys Fired 89 | . 66 23 Largest 2 | . 2 1 Hottest 100 | . 100 40 Shots Fired 124 | . 101 23 Gun 58 | . 43 15 Cannon 38 | . 38 . Launcher 28 | . 20 8 Special . | . . . Kinetic . | . . . Thermal 79 | . 64 15 Explosive 28 | . 20 8 Electromagnetic 17 | . 17 . Robot Hit Streak 20 | . 8 20 Robot Miss Streak 5 | . 5 1 Penetration Max . | . . . Secondary Targets . | . . . Shots Hit Robots 67 | . 45 22 Core Hits 46 | . 34 12 Critical Kills . | . . . Critical Parts Destroyed . | . . . Critical Strikes . | . . . Melee Attacks . | . . . Impact . | . . . Slashing . | . . . Piercing . | . . . Sneak Attacks . | . . . Combat Hostiles . | . . . Follow-up Attacks . | . . . Damage Inflicted 2053 | . 1509 544 Guns 491 | . 332 159 Cannons 316 | . 316 . Explosions 1219 | . 861 358 Melee . | . . . Ramming 27 | . . 27 Kinetic . | . . . Thermal 664 | . 505 159 Explosive 1219 | . 861 358 Electromagnetic 143 | . 143 . Impact . | . . . Slashing . | . . . Piercing . | . . . Highest Corruption . | . . . Average Corruption . | . . . Corruption Purged . | . . . Corruption Blocked . | . . . Overload Shots . | . . . Overflow Damage 102 | . 81 21 Projectiles . | . . . Explosions 102 | . 81 21 Melee . | . . . Knockbacks . | . . . Impact . | . . . Kinetic . | . . . Secondary . | . . . Self-Inflicted Damage 558 | . 308 250 Shots 16 | . 8 8 Rammed 13 | . . 13 Targets Rammed 13 | . . 13 Kicked . | . . . Crushed . | . . . Highest Temperature 407 | . 407 12 Average Temperature 105 | . 107 8 Received Heat Transfer 348 | . 234 114 Effects 5 | . 5 . Shutdowns 2 | . 2 . Energy Bleed 1 | . 1 . Interference 2 | . 2 . Siege Activations . | . . . Robots Corrupted . | . . . Combat Hostiles . | . . . Parts Fried 2 | . 2 . Impact Corruptions . | . . . Robots Melted . | . . . Combat Hostiles . | . . . Parts Melted . | . . . Heat Transferred 1441 | . 1091 350 Parts Sabotaged . | . . . Parts Stolen . | . . . Parts Stripped . | . . . Power Chain Reactions . | . . . Alert | -11 -10 -10 ------- Run | Yrd Mat Min Peak Influence 278 | . 278 202 Initial 108 | . . 108 Average 98 | . 96 109 Maximum Alert Level 1 | . 1 1 Low Security (%) 73 | 100 82 59 Level 1 26 | . 17 40 Level 2 . | . . . Level 3 . | . . . Level 4 . | . . . Level 5 . | . . . High Security . | . . . Max Security . | . . . Squads Dispatched 2 | . 2 . Investigation 1 | . 1 . Extermination . | . . . Reinforcement 1 | . 1 . Assault . | . . . Garrison . | . . . Intercept . | . . . Searches Triggered . | . . . Construction Impeded . | . . . Haulers Reinforced . | . . . Active Scanning Responses . | . . . Cargo Convoy Interrupts . | . . . Stealth | -11 -10 -10 --------- Run | Yrd Mat Min Distress Signals 1 | . 1 . Communications Jammed . | . . . Distress Signals . | . . . Times Spotted 24 | . 20 4 Peak Tracking Total 7 | . 7 2 Tactical Retreats . | . . . Traps | -11 -10 -10 ------- Run | Yrd Mat Min Traps Triggered 1 | . 1 . Indirectly . | . . . Trap Hack Attempts . | . . . Triggered . | . . . Disarmed . | . . . Reprogrammed . | . . . Reused . | . . . Traps Extracted . | . . . Installed . | . . . Triggered . | . . . Machines | -11 -10 -10 ---------- Run | Yrd Mat Min Machines Disabled 7 | . 6 1 Max in Single Turn 1 | . 1 1 Machines Repaired . | . . . Machines Dismantled . | . . . Machines Sabotaged . | . . . Overloaded Fab Kills . | . . . Hacking | -11 -10 -10 --------- Run | Yrd Mat Min Machines Accessed 1 | . 1 . Terminals 1 | . 1 . Fabricators . | . . . Repair Stations . | . . . Recycling Units . | . . . Scanalyzers . | . . . Garrison Access . | . . . Total Hacks 2 | . 2 . Successful . | . . . Failed 2 | . 2 . Catastrophic . | . . . Database Lockouts . | . . . Manual 2 | . 2 . Terminals 2 | . 2 . Fabricators . | . . . Repair Stations . | . . . Recycling Units . | . . . Scanalyzers . | . . . Garrison Access . | . . . Terminal Hacks . | . . . Fabricator Hacks . | . . . Repair Station Hacks . | . . . Recycling Unit Hacks . | . . . Scanalyzer . | . . . Garrison Access Hacks . | . . . Unauthorized Hacks . | . . . Terminals . | . . . Fabricators . | . . . Repair Stations . | . . . Recycling Units . | . . . Scanalyzers . | . . . Garrison Access . | . . . Data Cores Recovered . | . . . Used . | . . . Hacking Detections 1 | . 1 . Full Trace Events . | . . . Feedback Events . | . . . Feedback Blocked . | . . . Robot Schematics Acquired . | . . . Robots Built . | . . . Authchips . | . . . Time . | . . . Total Robot Build Rating . | . . . Part Schematics Acquired . | . . . Parts Built . | . . . Authchips . | . . . Time . | . . . Total Part Build Rating . | . . . Parts Repaired . | . . . Time . | . . . Parts Recycled . | . . . Recycled Matter . | . . . Retrieved Matter . | . . . Retrieved Components . | . . . Parts Scanalyzed . | . . . Part Schematics Acquired . | . . . Parts Damaged . | . . . Bothacking | -11 -10 -10 ------------ Run | Yrd Mat Min Used RIF Installer . | . . . Robots Hacked . | . . . Non-combat . | . . . Combat . | . . . Robot Hacks Applied . | . . . Relay Couplers Released . | . . . Fabnet Peak Effective % . | . . . Robots Rewired . | . . . Allies Hacked . | . . . Hacks Repelled . | . . . Allies | -11 -10 -10 -------- Run | Yrd Mat Min Total Allies . | . . . Largest Group . | . . . Highest-Rated Group . | . . . Highest-Rated Ally . | . . . Total Orders . | . . . Ally Attacks . | . . . Total Damage . | . . . Kills . | . . . Allies Corrupted . | . . . Allies Melted . | . . . Intel | -11 -10 -10 ------- Run | Yrd Mat Min Robot Analysis Total . | . . . Derelict Logs Recovered 1 | . . 1 Drone Launches . | . . . Drone Recoveries . | . . . Exploration | -11 -10 -10 ------------- Run | Yrd Mat Min Turns Passed 1833 | 63 1053 717 Spaces Moved 790 | 36 528 226 Core 6 | 5 . 1 Treads 784 | 31 528 225 Legs . | . . . Wheels . | . . . Hover . | . . . Flight . | . . . Fastest Speed 50 | 50 160 160 Average Speed 159 | 144 160 160 Slowest Speed 200 | 160 160 200 Overloaded Moves . | . . . Propulsion Burnouts . | . . . Robots Hopped . | . . . Cave-ins Triggered . | . . . Exploration Rate (%) 39 | 4 64 51 Regions Visited 2 Branch Regions 1 Pre-discovered Areas 1 | . . 1 Known Exits Taken . | . . . Unknown Exits Taken 2 | 1 1 . Scrap Searched . | . . . Spaces Dug . | . . . Terrain Destroyed 214 | . 157 57 Melee . | . . . Projectile . | . . . AOE 214 | . 157 57 Terrain Rammed . | . . . Walls Destroyed . | . . . Machines Disabled . | . . . Actions | -11 -10 -10 --------- Run | Yrd Mat Min Total 1230 | 47 633 550 Wait 296 | . 10 286 Move 788 | 35 527 226 Hop . | . . . Pick Up 18 | 6 11 1 Fast Attach . | . . . Attach 12 | 6 5 1 Detach . | . . . Swap 9 | . 9 . Drop 5 | . 5 . Fire 89 | . 66 23 Melee . | . . . Ram . | . . . Kick . | . . . Crush 13 | . . 13 Escape Stasis . | . . . Rewire . | . . . Trap . | . . . Miscellaneous . | . . . Route ------- -11/Scrapyard -10/Materials (discovered 3 exits: [*Mat x2] / [*Min]) -10/Mines History --------- Turn | Location | Event 4 | -11/Scrapyard | Discovered new exit (range 15) 64 | -11/Scrapyard | Entered Materials 321 | -10/Materials | Build established: Mutant 333 | -10/Materials | Discovered new exit (range 16) 752 | -10/Materials | Core integrity fell below 50% 782 | -10/Materials | Lost 3 parts (1n2w) 969 | -10/Materials | Discovered new exit (range 7) 1091 | -10/Materials | Discovered new exit (range 10) 1117 | -10/Materials | Entered Mines 1118 | -10/Mines | Core integrity fell below 20% 1834 | -10/Mines | Destroyed by Y-45 Defender with Heavy Assault Rifle Last Messages --------------- K-01 Serf collects debris. Slammed into K-01 Serf. U-05 Engineer lays Concrete. U-05 Engineer builds a Wall. Slammed into U-05 Engineer. U-05 Engineer builds a Wall. Slammed into U-05 Engineer. Acquired Sml. Laser. K-01 Serf cleans the Laser Drill. Destroyed Lgt. Treads. K-01 Serf cleans the Laser Drill. A-02 Transporter destroyed. Slammed into K-01 Serf. Acquired derelict log, extracted data. World map updated: -9/Materials. Critical hit (Burn: +37). Critical hit (Destroy). Lgt. Treads destroyed. Ion Engine destroyed. Sml. Laser destroyed. Map ----- +----------------------------------------------------+ | ?# ?????# #######??????? | | ?# #?????# ##????????????? | | ?# #?????# ######?????????????? | | ?# #?????## ##??????????????????? | | ?# #?####?## ##??????????????????? | | ?# ###! #### ##??????????????????? | | ?# ##%% ## ##??????????????????? | | ?# ## ###??????????????????? | | ?# ####??????????????????? | | ## ##?????????????????????? | | ## ### ###?????????????????????? | | ### ##???##########??????????? | | #### ##???# #??????????? | | ### ##???# """ #??????????? | | ### #????# """ #??????????? | | # ### ###### """ #??????????? | | ## ### #??????????? | | ?## ## ###### """ #??????????? | | ??##### ##????# """ #??????????? | | ??????# ###?????# """ #??????????? | | ??????# #???????# #??????????? | | ????### #######?#############???????? | | ????# #???????##"YY"##??????? | | ????# ##### #???????#!! |!#??????? | | ????# ##???# ####????#!! /!#??????? | | ????# ?????# #???### @ #??##???? | | ????# ?????#### #??## ##//## #???? | | ????# ????????# #?## #???? | | ????# ????????# #?# #????? | | ????# ????????# ### ## #????? | | ???? ????????# #????? | | ???? ????????## ### #????? | | ????##??????????# #?## ##????? | | ????????????????# #??## ##?????? | | ????????????????# #???# ## ##??????? | | ????????????????# #???# #?###???????? | | ????????????????# ??? #???????????? | | ????????????????# #???###???????????? | | ????????????????# #?????????????????? | | ????????????????? #?????????????????? | | ????????????????? ??????????????????? | | ????????????????? ??????????????????? | | ?????????????????#??????????????????? | | ????????????????????????????????????? | | ????????????????????????????????????? | | ????????????????????????????????????? | | ????????????????????????????????????? | | ????????????????????????????????????? | | ????????????????????????????????????? | | | +----------------------------------------------------+ Best States ------------- Heat Dissipation 35 Energy Generation 10 Energy Capacity 250 Matter Stores 300 Matter Capacity 300 Sight Range 16 Terrain Scan Density 10 Evasion (%) 40 Recoil Reduction 2 Item Schematics ----------------- None Robot Schematics ------------------ None Fabricated ------------ Nothing Alien Tech Used ----------------- None Achievements -------------- None Challenges ------------ None Game ------ Seed PitchforkMicroSheargun Manual? 0 Play Time 00:11:42 Cumulative 68.6 hours Start 2025.03.28 @ 16:48:01 End 2025.03.28 @ 16:57:37 Sessions 1 Manual Loads 0 Difficulty Rogue Special Mode None Game No. 102 Rogue 88 Adventurer 14 Explorer 0 Win Type - Total 0 Types 0/0/0/0/0/0/0/0/0 Lore% 26 Gallery% 44 Achievement% 41 Wizard Run 0 Options --------- Layout 1 ASCII 0 Keyboard 0 Movement Mouse Keybinds 0 Fullscreen 1 Font 24/Smallcaps Map View 50x35 Zoom Use 0% Tactical HUD 0 Map Filters NONE Filters NONE Steam 1 RUN: 0080d0af-4d36-4497-b1cc-fa79e248125b